[Event "Titled Tuesday Blitz December 06 Early 2022"]
[White "Farmani Anosheh, Armin"]
[Black "Shuvalov, Evgenij"]
[WhiteFideId "24613240"]
[BlackFideId "4187237"]
[WhiteElo "2289"]
[BlackElo "2049"]
[Result "1-0"]
[Round "10"]
[TimeControl "180+1"]
[Date "2022.12.07"]
[WhiteClock "0:00:06"]
[BlackClock "0:00:05"]

1. d4 {[%clk 0:02:58]}  Nf6 {[%clk 0:02:57]} 2. c4 {[%clk 0:02:59]}  c5 {[%clk 0:02:57]} 3. d5 {[%clk 0:02:59]}  b5 {[%clk 0:02:57]} 4. cxb5 {[%clk 0:03:00]}  a6 {[%clk 0:02:57]} 5. bxa6 {[%clk 0:03:00]}  Bxa6 {[%clk 0:02:57]} 6. Nc3 {[%clk 0:03:01]}  g6 {[%clk 0:02:57]} 7. e4 {[%clk 0:03:02]}  Bxf1 {[%clk 0:02:57]} 8. Kxf1 {[%clk 0:03:03]}  d6 {[%clk 0:02:58]} 9. g3 {[%clk 0:03:02]}  Bg7 {[%clk 0:02:58]} 10. Kg2 {[%clk 0:03:03]}  O-O {[%clk 0:02:58]} 11. Nf3 {[%clk 0:03:01]}  Nbd7 {[%clk 0:02:58]} 12. a4 {[%clk 0:02:53]}  Qb6 {[%clk 0:02:58]} 13. h3 {[%clk 0:02:42]}  Rfb8 {[%clk 0:02:55]} 14. Re1 {[%clk 0:02:42]}  Ne8 {[%clk 0:02:49]} 15. Ra3 {[%clk 0:02:34]}  Nc7 {[%clk 0:02:42]} 16. Re2 {[%clk 0:02:27]}  Qa6 {[%clk 0:02:34]} 17. Bg5 {[%clk 0:02:24]}  h6 {[%clk 0:02:23]} 18. Bf4 {[%clk 0:01:53]}  g5 {[%clk 0:02:09]} 19. Be3 {[%clk 0:01:53]}  Nb6 {[%clk 0:02:06]} 20. h4 {[%clk 0:01:21]}  Nc4 {[%clk 0:02:01]} 21. Ra2 {[%clk 0:01:21]}  g4 {[%clk 0:01:53]} 22. Nh2 {[%clk 0:01:01]}  h5 {[%clk 0:01:51]} 23. Bc1 {[%clk 0:00:46]}  Ne5 {[%clk 0:01:40]} 24. Bg5 {[%clk 0:00:33]}  Kf8 {[%clk 0:01:33]} 25. Qd2 {[%clk 0:00:26]}  Qd3 {[%clk 0:01:30]} 26. Qc1 {[%clk 0:00:26]}  Nf3 {[%clk 0:00:53]} 27. Bh6 {[%clk 0:00:23]}  Rb4 {[%clk 0:00:46]} 28. Bxg7+ {[%clk 0:00:22]}  Kxg7 {[%clk 0:00:47]} 29. Re3 {[%clk 0:00:22]}  Qd4 {[%clk 0:00:37]} 30. Nxf3 {[%clk 0:00:20]}  gxf3+ {[%clk 0:00:38]} 31. Rxf3 {[%clk 0:00:21]}  f6 {[%clk 0:00:33]} 32. Rf5 {[%clk 0:00:21]}  Rh8 {[%clk 0:00:32]} 33. a5 {[%clk 0:00:19]}  Na6 {[%clk 0:00:32]} 34. Qc2 {[%clk 0:00:17]}  Rc4 {[%clk 0:00:31]} 35. Qe2 {[%clk 0:00:18]}  Kg6 {[%clk 0:00:27]} 36. g4 {[%clk 0:00:15]}  hxg4 {[%clk 0:00:25]} 37. Qxg4+ {[%clk 0:00:16]}  Kf7 {[%clk 0:00:25]} 38. Kh2 {[%clk 0:00:15]}  Qd2 {[%clk 0:00:21]} 39. Rf3 {[%clk 0:00:11]}  Nb4 {[%clk 0:00:15]} 40. Ra4 {[%clk 0:00:09]}  Rd4 {[%clk 0:00:10]} 41. a6 {[%clk 0:00:04]}  Rg8 {[%clk 0:00:08]} 42. Qh5+ {[%clk 0:00:04]}  Kf8 {[%clk 0:00:08]} 43. a7 {[%clk 0:00:05]}  Kg7 {[%clk 0:00:06]} 44. a8=Q {[%clk 0:00:05]}  Rxa8 {[%clk 0:00:06]} 45. Rxa8 {[%clk 0:00:06]}  Rd3 {[%clk 0:00:05]} 46. Qh8+ {[%clk 0:00:06]}  Kg6 {[%clk 0:00:05]} 47. Rg8+ {[%clk 0:00:06]}  Kf7 {[%clk 0:00:05]} 48. Qh7# {[%clk 0:00:06]} 1-0


[Site "https://www.chess.com"]

[Event "Titled Tuesday Blitz December 06 Early 2022"]
[White "Goroshkov, Maksym"]
[Black "Nugumanov, Bakhtiyar"]
[WhiteFideId "14142716"]
[BlackFideId "13701797"]
[WhiteElo "2258"]
[BlackElo "2287"]
[Result "1/2-1/2"]
[Round "10"]
[TimeControl "180+1"]
[Date "2022.12.07"]
[WhiteClock "0:00:04"]
[BlackClock "0:00:09"]

1. e4 {[%clk 0:02:57]}  c5 {[%clk 0:02:58]} 2. d4 {[%clk 0:02:56]}  cxd4 {[%clk 0:02:53]} 3. c3 {[%clk 0:02:56]}  d5 {[%clk 0:02:47]} 4. exd5 {[%clk 0:02:56]}  Qxd5 {[%clk 0:02:47]} 5. cxd4 {[%clk 0:02:56]}  Nc6 {[%clk 0:02:45]} 6. Nf3 {[%clk 0:02:56]}  Bg4 {[%clk 0:02:43]} 7. Be2 {[%clk 0:02:56]}  e6 {[%clk 0:02:42]} 8. Nc3 {[%clk 0:02:55]}  Qa5 {[%clk 0:02:40]} 9. O-O {[%clk 0:02:55]}  Nf6 {[%clk 0:02:40]} 10. h3 {[%clk 0:02:51]}  Bf5 {[%clk 0:02:39]} 11. Be3 {[%clk 0:02:49]}  Be7 {[%clk 0:02:34]} 12. Bd3 {[%clk 0:02:32]}  Bxd3 {[%clk 0:02:33]} 13. Qxd3 {[%clk 0:02:33]}  O-O {[%clk 0:02:33]} 14. Rad1 {[%clk 0:02:30]}  Nb4 {[%clk 0:02:32]} 15. Qd2 {[%clk 0:02:22]}  Nbd5 {[%clk 0:02:32]} 16. Nxd5 {[%clk 0:02:17]}  Qxd5 {[%clk 0:02:33]} 17. b3 {[%clk 0:02:13]}  Rac8 {[%clk 0:02:31]} 18. Rc1 {[%clk 0:02:12]}  Ba3 {[%clk 0:02:30]} 19. Rc2 {[%clk 0:02:08]}  Ne4 {[%clk 0:02:29]} 20. Qd3 {[%clk 0:02:06]}  h6 {[%clk 0:02:19]} 21. Ne5 {[%clk 0:01:56]}  Nd6 {[%clk 0:02:11]} 22. Nc4 {[%clk 0:01:50]}  Bb4 {[%clk 0:01:45]} 23. a3 {[%clk 0:01:48]}  b5 {[%clk 0:01:45]} 24. axb4 {[%clk 0:01:17]}  bxc4 {[%clk 0:01:45]} 25. bxc4 {[%clk 0:01:17]}  Rxc4 {[%clk 0:01:45]} 26. Rxc4 {[%clk 0:01:15]}  Qxc4 {[%clk 0:01:04]} 27. Qxc4 {[%clk 0:01:14]}  Nxc4 {[%clk 0:01:05]} 28. Rc1 {[%clk 0:01:14]}  Rc8 {[%clk 0:01:04]} 29. d5 {[%clk 0:01:12]}  exd5 {[%clk 0:00:47]} 30. Bxa7 {[%clk 0:01:11]}  Ra8 {[%clk 0:00:47]} 31. Bd4 {[%clk 0:01:07]}  Ra4 {[%clk 0:00:41]} 32. Rb1 {[%clk 0:01:04]}  Na3 {[%clk 0:00:39]} 33. Rb2 {[%clk 0:01:02]}  Nb5 {[%clk 0:00:38]} 34. Bc5 {[%clk 0:01:01]}  d4 {[%clk 0:00:37]} 35. Re2 {[%clk 0:00:58]}  d3 {[%clk 0:00:35]} 36. Re8+ {[%clk 0:00:57]}  Kh7 {[%clk 0:00:35]} 37. Rd8 {[%clk 0:00:58]}  Ra3 {[%clk 0:00:34]} 38. Rd7 {[%clk 0:00:53]}  Kg6 {[%clk 0:00:33]} 39. h4 {[%clk 0:00:51]}  h5 {[%clk 0:00:33]} 40. g3 {[%clk 0:00:51]}  Rb3 {[%clk 0:00:33]} 41. Kg2 {[%clk 0:00:50]}  f6 {[%clk 0:00:31]} 42. Bf8 {[%clk 0:00:50]}  Kf5 {[%clk 0:00:31]} 43. Rd5+ {[%clk 0:00:47]}  Ke4 {[%clk 0:00:29]} 44. Rd7 {[%clk 0:00:28]}  Rb2 {[%clk 0:00:29]} 45. Bxg7 {[%clk 0:00:28]}  d2 {[%clk 0:00:26]} 46. Bh6 {[%clk 0:00:27]}  Nd4 {[%clk 0:00:24]} 47. Bxd2 {[%clk 0:00:22]}  Rxd2 {[%clk 0:00:25]} 48. b5 {[%clk 0:00:22]}  Rb2 {[%clk 0:00:26]} 49. Rd6 {[%clk 0:00:21]}  Ke5 {[%clk 0:00:26]} 50. Rd8 {[%clk 0:00:17]}  Rxb5 {[%clk 0:00:26]} 51. Rh8 {[%clk 0:00:17]}  Ke4 {[%clk 0:00:26]} 52. Re8+ {[%clk 0:00:17]}  Kf5 {[%clk 0:00:26]} 53. Rh8 {[%clk 0:00:17]}  Kg6 {[%clk 0:00:26]} 54. Rg8+ {[%clk 0:00:18]}  Kf7 {[%clk 0:00:27]} 55. Rh8 {[%clk 0:00:18]}  Ne6 {[%clk 0:00:27]} 56. Rh7+ {[%clk 0:00:17]}  Ng7 {[%clk 0:00:25]} 57. Rh8 {[%clk 0:00:17]}  Kg6 {[%clk 0:00:20]} 58. Rg8 {[%clk 0:00:16]}  Rb2 {[%clk 0:00:19]} 59. Rf8 {[%clk 0:00:15]}  Ne6 {[%clk 0:00:16]} 60. Re8 {[%clk 0:00:14]}  Kf5 {[%clk 0:00:15]} 61. Rh8 {[%clk 0:00:14]}  Ng7 {[%clk 0:00:14]} 62. Rg8 {[%clk 0:00:13]}  Rb7 {[%clk 0:00:15]} 63. Rh8 {[%clk 0:00:12]}  Kg4 {[%clk 0:00:14]} 64. Rg8 {[%clk 0:00:12]}  Kf5 {[%clk 0:00:13]} 65. Rh8 {[%clk 0:00:12]}  Ke6 {[%clk 0:00:13]} 66. Rg8 {[%clk 0:00:11]}  f5 {[%clk 0:00:14]} 67. Rh8 {[%clk 0:00:10]}  Kf6 {[%clk 0:00:14]} 68. Rf8+ {[%clk 0:00:10]}  Kg6 {[%clk 0:00:14]} 69. Rh8 {[%clk 0:00:10]}  Rb3 {[%clk 0:00:14]} 70. Rf8 {[%clk 0:00:10]}  Ne6 {[%clk 0:00:14]} 71. Re8 {[%clk 0:00:09]}  Kf7 {[%clk 0:00:13]} 72. Rh8 {[%clk 0:00:09]}  Ng7 {[%clk 0:00:14]} 73. Rh6 {[%clk 0:00:09]}  Rc3 {[%clk 0:00:13]} 74. Rh8 {[%clk 0:00:09]}  f4 {[%clk 0:00:13]} 75. gxf4 {[%clk 0:00:09]}  Kg6 {[%clk 0:00:12]} 76. Rf8 {[%clk 0:00:08]}  Nf5 {[%clk 0:00:12]} 77. Rg8+ {[%clk 0:00:08]}  Kh6 {[%clk 0:00:09]} 78. Rh8+ {[%clk 0:00:08]}  Kg6 {[%clk 0:00:09]} 79. Rg8+ {[%clk 0:00:08]}  Kh7 {[%clk 0:00:09]} 80. Rg5 {[%clk 0:00:08]}  Nxh4+ {[%clk 0:00:09]} 81. Kf1 {[%clk 0:00:09]}  Kh6 {[%clk 0:00:09]} 82. Ra5 {[%clk 0:00:09]}  Rc2 {[%clk 0:00:06]} 83. Ra6+ {[%clk 0:00:09]}  Kg7 {[%clk 0:00:06]} 84. Ra5 {[%clk 0:00:09]}  Kg6 {[%clk 0:00:06]} 85. Ra6+ {[%clk 0:00:10]}  Kf5 {[%clk 0:00:06]} 86. Ra5+ {[%clk 0:00:10]}  Kg4 {[%clk 0:00:07]} 87. Rg5+ {[%clk 0:00:10]}  Kxf4 {[%clk 0:00:07]} 88. Rxh5 {[%clk 0:00:10]}  Nf3 {[%clk 0:00:06]} 89. Kg2 {[%clk 0:00:07]}  Rc1 {[%clk 0:00:05]} 90. Ra5 {[%clk 0:00:08]}  Rg1+ {[%clk 0:00:05]} 91. Kh3 {[%clk 0:00:08]}  Rh1+ {[%clk 0:00:05]} 92. Kg2 {[%clk 0:00:08]}  Rh2+ {[%clk 0:00:05]} 93. Kf1 {[%clk 0:00:09]}  Ne5 {[%clk 0:00:05]} 94. Ra4+ {[%clk 0:00:09]}  Kf5 {[%clk 0:00:05]} 95. f4 {[%clk 0:00:08]}  Nd3 {[%clk 0:00:04]} 96. Kg1 {[%clk 0:00:08]}  Rd2 {[%clk 0:00:04]} 97. Rd4 {[%clk 0:00:06]}  Kg4 {[%clk 0:00:03]} 98. f5+ {[%clk 0:00:06]}  Kf3 {[%clk 0:00:03]} 99. f6 {[%clk 0:00:06]}  Rd1+ {[%clk 0:00:03]} 100. Kh2 {[%clk 0:00:06]}  Ke3 {[%clk 0:00:03]} 101. Rd8 {[%clk 0:00:05]}  Rf1 {[%clk 0:00:04]} 102. Re8+ {[%clk 0:00:04]}  Kd4 {[%clk 0:00:04]} 103. Rf8 {[%clk 0:00:04]}  Ne5 {[%clk 0:00:04]} 104. Rd8+ {[%clk 0:00:04]}  Ke4 {[%clk 0:00:05]} 105. Rf8 {[%clk 0:00:03]}  Rf5 {[%clk 0:00:05]} 106. Kg3 {[%clk 0:00:03]}  Kd5 {[%clk 0:00:06]} 107. Kh4 {[%clk 0:00:03]}  Ke6 {[%clk 0:00:07]} 108. f7 {[%clk 0:00:03]}  Nxf7 {[%clk 0:00:06]} 109. Re8+ {[%clk 0:00:04]}  Kf6 {[%clk 0:00:07]} 110. Re1 {[%clk 0:00:04]}  Re5 {[%clk 0:00:08]} 111. Rxe5 {[%clk 0:00:04]}  Nxe5 {[%clk 0:00:09]} 1/2-1/2


[Site "https://www.chess.com"]

[Event "Titled Tuesday Blitz December 06 Early 2022"]
[White "Grot, Blazej"]
[Black "Cramling Bellon, Anna"]
[WhiteFideId "21835845"]
[BlackFideId "32009232"]
[WhiteElo "1823"]
[BlackElo "1972"]
[Result "1-0"]
[Round "10"]
[TimeControl "180+1"]
[Date "2022.12.07"]
[WhiteClock "0:00:53"]
[BlackClock "0:00:01"]

1. e4 {[%clk 0:02:43]}  c5 {[%clk 0:02:59]} 2. Nc3 {[%clk 0:02:39]}  Nc6 {[%clk 0:02:54]} 3. Bb5 {[%clk 0:02:38]}  Nd4 {[%clk 0:02:52]} 4. Nf3 {[%clk 0:02:38]}  Nxb5 {[%clk 0:02:51]} 5. Nxb5 {[%clk 0:02:38]}  a6 {[%clk 0:02:49]} 6. Nc3 {[%clk 0:02:38]}  d6 {[%clk 0:02:46]} 7. d4 {[%clk 0:02:38]}  cxd4 {[%clk 0:02:46]} 8. Qxd4 {[%clk 0:02:39]}  Nf6 {[%clk 0:02:43]} 9. Bg5 {[%clk 0:02:39]}  Bg4 {[%clk 0:02:02]} 10. O-O-O {[%clk 0:02:37]}  Bxf3 {[%clk 0:01:55]} 11. gxf3 {[%clk 0:02:38]}  Qa5 {[%clk 0:01:55]} 12. Bxf6 {[%clk 0:02:35]}  gxf6 {[%clk 0:01:53]} 13. Nd5 {[%clk 0:02:36]}  Qxa2 {[%clk 0:01:38]} 14. Nc7+ {[%clk 0:02:26]}  Kd7 {[%clk 0:01:30]} 15. Nd5 {[%clk 0:02:00]}  Bh6+ {[%clk 0:01:24]} 16. f4 {[%clk 0:02:00]}  Rac8 {[%clk 0:00:45]} 17. Nxf6+ {[%clk 0:01:16]}  Kd8 {[%clk 0:00:38]} 18. Nd5 {[%clk 0:01:13]}  Kd7 {[%clk 0:00:31]} 19. Qb6 {[%clk 0:01:10]}  Rc3 {[%clk 0:00:01]} 20. Qxb7+ {[%clk 0:00:53]} 1-0


[Site "https://www.chess.com"]

[Event "Titled Tuesday Blitz December 06 Early 2022"]
[White "Han, Yichen"]
[Black "Mikhailovsky, Vladimir"]
[WhiteFideId "1054430"]
[BlackFideId "34105414"]
[WhiteElo "2323"]
[BlackElo "2295"]
[Result "1-0"]
[Round "10"]
[TimeControl "180+1"]
[Date "2022.12.06"]
[WhiteClock "0:00:18"]
[BlackClock "0:00:05"]

1. d4 {[%clk 0:03:00]}  d6 {[%clk 0:02:59]} 2. e4 {[%clk 0:03:00]}  Nf6 {[%clk 0:02:58]} 3. Nc3 {[%clk 0:03:01]}  e5 {[%clk 0:02:59]} 4. Nf3 {[%clk 0:02:57]}  Nbd7 {[%clk 0:02:59]} 5. Rg1 {[%clk 0:02:58]}  h5 {[%clk 0:02:27]} 6. Bc4 {[%clk 0:02:50]}  exd4 {[%clk 0:02:20]} 7. Qxd4 {[%clk 0:02:43]}  Nb6 {[%clk 0:02:18]} 8. Bb3 {[%clk 0:02:33]}  c5 {[%clk 0:02:16]} 9. Qd3 {[%clk 0:02:32]}  Be6 {[%clk 0:02:06]} 10. Bxe6 {[%clk 0:02:28]}  fxe6 {[%clk 0:02:07]} 11. e5 {[%clk 0:02:26]}  dxe5 {[%clk 0:01:48]} 12. Qg6+ {[%clk 0:02:25]}  Ke7 {[%clk 0:01:49]} 13. Nxe5 {[%clk 0:02:23]}  Qe8 {[%clk 0:01:49]} 14. Qg5 {[%clk 0:02:03]}  Kd8 {[%clk 0:01:31]} 15. Be3 {[%clk 0:01:55]}  Kc8 {[%clk 0:01:29]} 16. Ng6 {[%clk 0:01:45]}  Rh6 {[%clk 0:01:09]} 17. Nxf8 {[%clk 0:01:36]}  Qxf8 {[%clk 0:01:10]} 18. Bxc5 {[%clk 0:01:26]}  Qe8 {[%clk 0:00:56]} 19. O-O-O {[%clk 0:01:21]}  Nbd5 {[%clk 0:00:36]} 20. Nxd5 {[%clk 0:01:03]}  Nxd5 {[%clk 0:00:36]} 21. Rge1 {[%clk 0:00:59]}  Qg6 {[%clk 0:00:16]} 22. Qxg6 {[%clk 0:00:55]}  Rxg6 {[%clk 0:00:16]} 23. Rxd5 {[%clk 0:00:56]}  exd5 {[%clk 0:00:17]} 24. Re8+ {[%clk 0:00:56]}  Kd7 {[%clk 0:00:18]} 25. Rxa8 {[%clk 0:00:56]}  Rxg2 {[%clk 0:00:19]} 26. Rxa7 {[%clk 0:00:52]}  Rxh2 {[%clk 0:00:19]} 27. Bd4 {[%clk 0:00:46]}  g5 {[%clk 0:00:16]} 28. Rxb7+ {[%clk 0:00:46]}  Kc6 {[%clk 0:00:17]} 29. Rg7 {[%clk 0:00:45]}  g4 {[%clk 0:00:17]} 30. Kd2 {[%clk 0:00:43]}  Rg2 {[%clk 0:00:16]} 31. Rh7 {[%clk 0:00:41]}  Rh2 {[%clk 0:00:16]} 32. Kd3 {[%clk 0:00:39]}  Rh1 {[%clk 0:00:16]} 33. Rh6+ {[%clk 0:00:36]}  Kb5 {[%clk 0:00:15]} 34. Rb6+ {[%clk 0:00:34]}  Ka5 {[%clk 0:00:15]} 35. b4+ {[%clk 0:00:34]}  Ka4 {[%clk 0:00:15]} 36. Kc3 {[%clk 0:00:29]}  Rh3+ {[%clk 0:00:14]} 37. Kb2 {[%clk 0:00:28]}  g3 {[%clk 0:00:11]} 38. fxg3 {[%clk 0:00:27]}  Rxg3 {[%clk 0:00:12]} 39. Rh6 {[%clk 0:00:23]}  Rg4 {[%clk 0:00:12]} 40. Bc5 {[%clk 0:00:22]}  Rh4 {[%clk 0:00:10]} 41. Ra6+ {[%clk 0:00:19]}  Kb5 {[%clk 0:00:10]} 42. Ra8 {[%clk 0:00:19]}  Rh1 {[%clk 0:00:10]} 43. a4+ {[%clk 0:00:20]}  Kc4 {[%clk 0:00:10]} 44. a5 {[%clk 0:00:19]}  h4 {[%clk 0:00:11]} 45. a6 {[%clk 0:00:19]}  h3 {[%clk 0:00:12]} 46. a7 {[%clk 0:00:18]}  h2 {[%clk 0:00:13]} 47. Rh8 {[%clk 0:00:18]}  Ra1 {[%clk 0:00:04]} 48. Kxa1 {[%clk 0:00:18]}  h1=Q+ {[%clk 0:00:04]} 49. Rxh1 {[%clk 0:00:18]}  d4 {[%clk 0:00:04]} 50. a8=Q {[%clk 0:00:18]}  d3 {[%clk 0:00:05]} 51. Qa2+ {[%clk 0:00:17]}  Kc3 {[%clk 0:00:05]} 52. Qb3+ {[%clk 0:00:17]}  Kd2 {[%clk 0:00:05]} 53. Qxd3# {[%clk 0:00:18]} 1-0


[Site "https://www.chess.com"]

[Event "Titled Tuesday Blitz December 06 Early 2022"]
[White "Hansen, Eric"]
[Black "Movahed, Sina"]
[WhiteFideId "2606771"]
[BlackFideId "42520835"]
[WhiteElo "2568"]
[BlackElo "2225"]
[Result "1-0"]
[Round "10"]
[TimeControl "180+1"]
[Date "2022.12.06"]
[WhiteClock "0:01:07"]
[BlackClock "0:00:09"]

1. d4 {[%clk 0:03:00]}  Nf6 {[%clk 0:02:59]} 2. Nf3 {[%clk 0:03:01]}  g6 {[%clk 0:02:59]} 3. Bg5 {[%clk 0:03:00]}  Bg7 {[%clk 0:02:58]} 4. c3 {[%clk 0:02:58]}  O-O {[%clk 0:02:59]} 5. Nbd2 {[%clk 0:02:59]}  c5 {[%clk 0:02:59]} 6. e3 {[%clk 0:02:59]}  d6 {[%clk 0:02:58]} 7. Be2 {[%clk 0:02:59]}  Nc6 {[%clk 0:02:58]} 8. O-O {[%clk 0:02:59]}  h6 {[%clk 0:02:56]} 9. Bh4 {[%clk 0:02:59]}  Bf5 {[%clk 0:02:51]} 10. Re1 {[%clk 0:02:56]}  a6 {[%clk 0:02:23]} 11. a4 {[%clk 0:02:55]}  cxd4 {[%clk 0:02:19]} 12. exd4 {[%clk 0:02:54]}  Qc7 {[%clk 0:02:15]} 13. Nc4 {[%clk 0:02:52]}  Be4 {[%clk 0:02:08]} 14. Nfd2 {[%clk 0:02:47]}  Bf5 {[%clk 0:02:07]} 15. Ne3 {[%clk 0:02:47]}  Bc8 {[%clk 0:02:03]} 16. Bxf6 {[%clk 0:02:45]}  exf6 {[%clk 0:02:04]} 17. Nd5 {[%clk 0:02:43]}  Qd8 {[%clk 0:02:01]} 18. Bf3 {[%clk 0:02:41]}  f5 {[%clk 0:02:00]} 19. g3 {[%clk 0:02:40]}  Rb8 {[%clk 0:01:58]} 20. Nc4 {[%clk 0:02:27]}  b5 {[%clk 0:01:58]} 21. axb5 {[%clk 0:02:25]}  axb5 {[%clk 0:01:58]} 22. Nce3 {[%clk 0:02:25]}  Re8 {[%clk 0:01:56]} 23. h4 {[%clk 0:02:18]}  h5 {[%clk 0:01:52]} 24. Ng2 {[%clk 0:02:15]}  Rxe1+ {[%clk 0:01:46]} 25. Qxe1 {[%clk 0:02:14]}  Bb7 {[%clk 0:01:47]} 26. Ngf4 {[%clk 0:02:13]}  b4 {[%clk 0:01:31]} 27. Qe3 {[%clk 0:02:09]}  bxc3 {[%clk 0:01:30]} 28. bxc3 {[%clk 0:02:09]}  Kh7 {[%clk 0:01:07]} 29. Nh3 {[%clk 0:01:56]}  Kg8 {[%clk 0:01:02]} 30. Ng5 {[%clk 0:01:53]}  Qd7 {[%clk 0:00:57]} 31. Re1 {[%clk 0:01:50]}  Rf8 {[%clk 0:00:32]} 32. Qe2 {[%clk 0:01:24]}  Rc8 {[%clk 0:00:08]} 33. Nb6 {[%clk 0:01:21]}  Qd8 {[%clk 0:00:08]} 34. Nxc8 {[%clk 0:01:20]}  Qxc8 {[%clk 0:00:09]} 35. Qe8+ {[%clk 0:01:20]}  Qxe8 {[%clk 0:00:09]} 36. Rxe8+ {[%clk 0:01:21]}  Bf8 {[%clk 0:00:09]} 37. Bd5 {[%clk 0:01:07]} 1-0


[Site "https://www.chess.com"]

[Event "Titled Tuesday Blitz December 06 Early 2022"]
[White "Ismayil, Malak"]
[Black "Guzman Moneo, Alberto"]
[WhiteFideId "13412604"]
[BlackFideId "2209616"]
[WhiteElo "1880"]
[BlackElo "2157"]
[Result "0-1"]
[Round "10"]
[TimeControl "180+1"]
[Date "2022.12.07"]
[WhiteClock "0:00:02"]
[BlackClock "0:00:46"]

1. e4 {[%clk 0:03:00]}  c5 {[%clk 0:02:59]} 2. Nf3 {[%clk 0:03:01]}  Nc6 {[%clk 0:02:59]} 3. Bb5 {[%clk 0:03:01]}  g6 {[%clk 0:02:58]} 4. Bxc6 {[%clk 0:03:01]}  dxc6 {[%clk 0:02:59]} 5. h3 {[%clk 0:03:01]}  Qc7 {[%clk 0:02:57]} 6. d3 {[%clk 0:03:02]}  e5 {[%clk 0:02:57]} 7. Nc3 {[%clk 0:03:02]}  Nf6 {[%clk 0:02:54]} 8. Be3 {[%clk 0:03:01]}  b6 {[%clk 0:02:49]} 9. Qd2 {[%clk 0:03:01]}  Nh5 {[%clk 0:02:33]} 10. Nh2 {[%clk 0:02:49]}  h6 {[%clk 0:02:27]} 11. Ng4 {[%clk 0:02:45]}  f5 {[%clk 0:02:22]} 12. exf5 {[%clk 0:02:42]}  gxf5 {[%clk 0:02:22]} 13. Nxh6 {[%clk 0:02:30]}  f4 {[%clk 0:02:20]} 14. Ng4 {[%clk 0:02:31]}  fxe3 {[%clk 0:02:17]} 15. Qxe3 {[%clk 0:02:32]}  Bg7 {[%clk 0:02:07]} 16. Ne4 {[%clk 0:02:21]}  Bxg4 {[%clk 0:02:00]} 17. hxg4 {[%clk 0:02:20]}  Nf4 {[%clk 0:02:00]} 18. Rxh8+ {[%clk 0:02:19]}  Bxh8 {[%clk 0:02:01]} 19. O-O-O {[%clk 0:02:14]}  O-O-O {[%clk 0:01:58]} 20. g3 {[%clk 0:02:10]}  Ne6 {[%clk 0:01:58]} 21. Rh1 {[%clk 0:01:32]}  Qf7 {[%clk 0:01:56]} 22. g5 {[%clk 0:01:10]}  Kb8 {[%clk 0:01:30]} 23. Rh6 {[%clk 0:00:39]}  Bg7 {[%clk 0:01:24]} 24. Rh7 {[%clk 0:00:30]}  Qg8 {[%clk 0:01:21]} 25. g6 {[%clk 0:00:28]}  Nd4 {[%clk 0:01:19]} 26. Qg5 {[%clk 0:00:27]}  Re8 {[%clk 0:01:13]} 27. b3 {[%clk 0:00:22]}  Ne6 {[%clk 0:01:01]} 28. Qf5 {[%clk 0:00:20]}  Rf8 {[%clk 0:01:00]} 29. Qh5 {[%clk 0:00:14]}  Nd4 {[%clk 0:00:54]} 30. f4 {[%clk 0:00:06]}  exf4 {[%clk 0:00:53]} 31. gxf4 {[%clk 0:00:07]}  Ne2+ {[%clk 0:00:52]} 32. Qxe2 {[%clk 0:00:06]}  Rxf4 {[%clk 0:00:51]} 33. Qh2 {[%clk 0:00:06]}  Be5 {[%clk 0:00:49]} 34. Rf7 {[%clk 0:00:02]}  Rf1+ {[%clk 0:00:46]} 0-1


[Site "https://www.chess.com"]

[Event "Titled Tuesday Blitz December 06 Early 2022"]
[White "Kuchava, Ana"]
[Black "Makhmudov, Shukhrat"]
[WhiteFideId "13605348"]
[BlackFideId "14200775"]
[WhiteElo "2001"]
[BlackElo "2135"]
[Result "1-0"]
[Round "10"]
[TimeControl "180+1"]
[Date "2022.12.07"]
[WhiteClock "0:00:14"]
[BlackClock "0:00:06"]

1. d4 {[%clk 0:03:00]}  Nf6 {[%clk 0:02:47]} 2. Nf3 {[%clk 0:02:59]}  d5 {[%clk 0:02:46]} 3. c4 {[%clk 0:02:57]}  e6 {[%clk 0:02:43]} 4. Nc3 {[%clk 0:02:56]}  Bb4 {[%clk 0:02:42]} 5. Qa4+ {[%clk 0:02:54]}  Nc6 {[%clk 0:02:42]} 6. e3 {[%clk 0:02:54]}  O-O {[%clk 0:02:39]} 7. Bd3 {[%clk 0:02:53]}  dxc4 {[%clk 0:02:39]} 8. Bxc4 {[%clk 0:02:52]}  a6 {[%clk 0:02:39]} 9. Qc2 {[%clk 0:02:50]}  Bd6 {[%clk 0:02:37]} 10. O-O {[%clk 0:02:50]}  e5 {[%clk 0:02:37]} 11. d5 {[%clk 0:02:48]}  Ne7 {[%clk 0:02:29]} 12. e4 {[%clk 0:02:47]}  Ng6 {[%clk 0:02:29]} 13. h3 {[%clk 0:02:38]}  h6 {[%clk 0:02:28]} 14. Be3 {[%clk 0:02:37]}  Nh5 {[%clk 0:02:27]} 15. Rac1 {[%clk 0:02:32]}  Qf6 {[%clk 0:02:23]} 16. Rfd1 {[%clk 0:02:29]}  Bxh3 {[%clk 0:02:21]} 17. Bf1 {[%clk 0:02:22]}  Bg4 {[%clk 0:02:05]} 18. Be2 {[%clk 0:02:02]}  Nhf4 {[%clk 0:01:51]} 19. Ne1 {[%clk 0:01:49]}  Nxe2+ {[%clk 0:01:27]} 20. Nxe2 {[%clk 0:01:50]}  Nf4 {[%clk 0:01:25]} 21. Nxf4 {[%clk 0:01:45]}  exf4 {[%clk 0:01:25]} 22. Bd4 {[%clk 0:01:45]}  Qg5 {[%clk 0:01:20]} 23. Rd3 {[%clk 0:01:35]}  Rae8 {[%clk 0:01:11]} 24. f3 {[%clk 0:01:32]}  Bd7 {[%clk 0:01:03]} 25. Qc3 {[%clk 0:01:32]}  f6 {[%clk 0:00:48]} 26. Bc5 {[%clk 0:01:22]}  Be5 {[%clk 0:00:46]} 27. Bd4 {[%clk 0:01:20]}  Qh4 {[%clk 0:00:43]} 28. Bxe5 {[%clk 0:01:15]}  Rxe5 {[%clk 0:00:42]} 29. Qxc7 {[%clk 0:01:14]}  Bb5 {[%clk 0:00:39]} 30. d6 {[%clk 0:00:59]}  Bxd3 {[%clk 0:00:16]} 31. Nxd3 {[%clk 0:01:00]}  Rh5 {[%clk 0:00:15]} 32. d7 {[%clk 0:00:48]}  f5 {[%clk 0:00:15]} 33. Ne5 {[%clk 0:00:30]}  fxe4 {[%clk 0:00:14]} 34. Qc4+ {[%clk 0:00:29]}  Kh7 {[%clk 0:00:13]} 35. Qxe4+ {[%clk 0:00:29]}  Kg8 {[%clk 0:00:12]} 36. Qc4+ {[%clk 0:00:25]}  Kh7 {[%clk 0:00:13]} 37. Nf7 {[%clk 0:00:21]}  Qh1+ {[%clk 0:00:06]} 38. Kf2 {[%clk 0:00:22]}  Qh4+ {[%clk 0:00:06]} 39. Ke2 {[%clk 0:00:19]}  Qe7+ {[%clk 0:00:06]} 40. Qe4+ {[%clk 0:00:13]}  Qxe4+ {[%clk 0:00:06]} 41. fxe4 {[%clk 0:00:14]} 1-0


[Site "https://www.chess.com"]